fUSD/lending_fUSD_20240803
["ID","MTS","AMOUNT","RATE_DAILY","PERIOD"]
[334004940,1722672690750,-500.0,0.00018356,2]
[334004941,1722672690761,-500.0,0.00018356,2]
[334004942,1722672690771,-500.0,0.00018356,2]
[334004943,1722672690780,-500.0,0.00018356,2]
[334004944,1722672690789,-500.0,0.00018356,2]
[334004945,1722672690798,-500.0,0.00018356,2]
[334004946,1722672690807,-904.56,0.00018356,2]
[334004947,1722672690816,-501.53,0.00018356,2]
[334004948,1722672690825,-500.0,0.00018356,2]
[334004949,1722672690834,-500.0,0.00018356,2]
[334004950,1722672690844,-500.0,0.00018356,2]
[334004951,1722672690853,-622.55,0.00018356,2]
[334004952,1722672690862,-540.33,0.00018356,2]
[334004953,1722672690872,-500.0,0.00018356,2]
[334004954,1722672690881,-602.82,0.00018356,2]
[334004955,1722672690891,-644.95,0.00018356,2]
[334004956,1722672690900,-503.96,0.00018356,2]
[334004957,1722672690910,-500.0,0.00018356,2]
[334004958,1722672690919,-502.23634091,0.00018356,2]
[334004959,1722672690929,-825.13,0.00018356,2]
[334004960,1722672690939,-500.0,0.00018356,2]
[334004961,1722672690949,-500.0,0.00018356,2]
[334004962,1722672690958,-500.0,0.00018356,2]
[334004963,1722672690968,-500.0,0.00018356,2]
[334004964,1722672690977,-1519.4,0.00018356,2]
[334004965,1722672690986,-500.0,0.00018356,2]
[334004966,1722672690995,-500.0,0.00018356,2]
[334004967,1722672691004,-684.44,0.00018356,2]
[334004968,1722672691014,-500.0,0.00018356,2]
[334004969,1722672691023,-500.0,0.00018356,2]
[334004970,1722672691032,-500.0,0.00018356,2]
[334004971,1722672691041,-500.0,0.00018356,2]
[334004972,1722672691050,-584.67,0.00018356,2]
[334004973,1722672691060,-604.12,0.00018356,2]
[334004974,1722672691069,-528.36,0.00018356,2]
[334004975,1722672691079,-616.8,0.00018356,2]
[334004976,1722672691089,-500.0,0.00018356,2]
[334004977,1722672691098,-509.32,0.00018356,2]
[334004978,1722672691109,-500.0,0.00018356,2]
[334004979,1722672691119,-500.0,0.00018356,2]
[334004980,1722672691129,-743.5,0.00018356,2]
[334004981,1722672691139,-1060.37,0.00018356,2]
[334004982,1722672691148,-500.0,0.00018356,2]
[334004983,1722672691158,-774.18,0.00018356,2]
[334004984,1722672691167,-848.13,0.00018356,2]
[334004985,1722672691176,-712.98,0.00018356,2]
[334004986,1722672691186,-500.0,0.00018356,2]
[334004987,1722672691196,-772.65,0.00018356,2]
[334004988,1722672691207,-744.14,0.00018356,2]
[334004989,1722672691217,-500.0,0.00018356,2]
[334004990,1722672691228,-500.0,0.00018356,2]
[334004991,1722672691237,-958.9,0.00018356,2]
[334004992,1722672691246,-500.0,0.00018356,2]
[334004993,1722672691256,-500.0,0.00018356,2]
[334004994,1722672691265,-1086.35,0.00018356,2]
[334004995,1722672691275,-500.0,0.00018356,2]
[334004996,1722672691284,-500.0,0.00018356,2]
[334004997,1722672691294,-500.0,0.00018356,2]
[334004998,1722672691303,-500.0,0.00018356,2]
[334004999,1722672691313,-500.0,0.00018356,2]
[334005000,1722672691322,-879.02,0.00018356,2]
[334005001,1722672691331,-1083.8,0.00018356,2]
[334005002,1722672691341,-500.0,0.00018356,2]
[334005003,1722672691352,-500.0,0.00018356,2]
[334005004,1722672691362,-515.45,0.00018356,2]
[334005005,1722672691373,-500.0,0.00018356,2]
[334005006,1722672691383,-500.0,0.00018356,2]
[334005007,1722672691392,-582.42,0.00018356,2]
[334005008,1722672691401,-500.0,0.00018356,2]
[334005009,1722672691410,-500.0,0.00018356,2]
[334005010,1722672691420,-500.0,0.00018356,2]
[334005011,1722672691430,-500.0,0.00018356,2]
[334005012,1722672691441,-500.0,0.00018356,2]
[334005013,1722672691451,-500.0,0.00018356,2]
[334005014,1722672691462,-500.0,0.00018356,2]
[334005015,1722672691471,-500.0,0.00018356,2]
[334005016,1722672691482,-1218.45,0.00018356,2]
[334005017,1722672691491,-500.0,0.00018356,2]
[334005018,1722672691500,-527.92,0.00018356,2]
[334005019,1722672691511,-500.0,0.00018356,2]
[334005020,1722672691524,-512.8389155,0.00018356,2]
[334005021,1722672691668,-500.0,0.00018356,2]
[334005022,1722672691678,-500.0,0.00018356,2]
[334005023,1722672691688,-611.34,0.00018356,2]
[334005024,1722672691698,-500.0,0.00018356,2]
[334005025,1722672691709,-500.0,0.00018356,2]
[334005026,1722672691719,-500.0,0.00018356,2]
[334005027,1722672691729,-500.0,0.00018356,2]
[334005028,1722672691739,-705.81,0.00018356,2]
[334005029,1722672691749,-661.0,0.00018356,2]
[334005030,1722672691760,-342.67,0.00018356,2]
[334005031,1722672691770,-500.0,0.00018356,2]
[334005032,1722672691780,-503.46194105,0.00018356,2]
[334005033,1722672691790,-500.0,0.00018356,2]
[334005034,1722672691800,-638.82,0.00018356,2]
[334005035,1722672691811,-744.23,0.00018356,2]
[334005036,1722672691821,-500.0,0.00018356,2]
[334005037,1722672691831,-457.2396868,0.00018356,2]
[334005038,1722672691841,-570.99,0.00018356,2]
[334005039,1722672691852,-727.54,0.00018356,2]
[334005040,1722672691862,-500.0,0.00018356,2]
[334005041,1722672691871,-500.0,0.00018356,2]
[334005042,1722672691881,-617.25,0.00018356,2]
[334005043,1722672691891,-500.0,0.00018356,2]
[334005044,1722672691900,-714.79,0.00018356,2]
[334005045,1722672691910,-556.41,0.00018356,2]
[334005046,1722672691920,-500.0,0.00018356,2]
[334005047,1722672691931,-500.0,0.00018356,2]
[334005048,1722672691941,-788.92,0.00018356,2]
[334005049,1722672691951,-1029.17,0.00018356,2]
[334005050,1722672691961,-500.0,0.00018356,2]
[334005051,1722672691971,-500.0,0.00018356,2]
[334005052,1722672691984,-710.03,0.00018356,2]
[334005053,1722672691995,-738.88,0.00018356,2]
[334005054,1722672692005,-539.38,0.00018356,2]
[334005055,1722672692015,-808.77,0.00018356,2]
[334005056,1722672692025,-500.0,0.00018356,2]
[334005057,1722672692035,-830.0,0.00018356,2]
[334005058,1722672692045,-554.02,0.00018356,2]
[334005059,1722672692055,-525.28,0.00018356,2]
[334005060,1722672692064,-500.0,0.00018356,2]
[334005061,1722672692074,-726.72,0.00018356,2]
[334005062,1722672692083,-500.0,0.00018356,2]
[334005063,1722672692093,-500.0,0.00018356,2]
[334005064,1722672692103,-500.0,0.00018356,2]
[334005065,1722672692113,-663.62,0.00018356,2]
[334005066,1722672692123,-500.0,0.00018356,2]
[334005067,1722672692133,-500.0,0.00018356,2]
[334005068,1722672692143,-547.37,0.00018356,2]
[334005069,1722672692153,-500.0,0.00018356,2]
[334005070,1722672692163,-500.0,0.00018356,2]
[334005071,1722672692174,-658.43,0.00018356,2]
[334005072,1722672692184,-529.53,0.00018356,2]
[334005073,1722672692195,-1319.94,0.00018356,2]
[334005074,1722672692205,-1146.49,0.00018356,2]
[334005075,1722672692215,-4233.34,0.00018356,2]
[334005076,1722672692227,-500.0,0.00018356,2]
[334005077,1722672692237,-955.66,0.00018356,2]
[334005078,1722672692247,-595.12,0.00018356,2]
[334005079,1722672692256,-673.07,0.00018356,2]
[334005080,1722672692266,-500.0,0.00018356,2]
[334005081,1722672692276,-746.94,0.00018356,2]
[334005082,1722672692286,-834.43,0.00018356,2]
[334005083,1722672692296,-9414.57,0.00018356,2]
[334005084,1722672692306,-500.0,0.00018356,2]
[334005085,1722672692316,-500.0,0.00018356,2]
[334005086,1722672692326,-657.98,0.00018356,2]
[334005087,1722672692336,-1422.26,0.00018356,2]
[334005088,1722672692346,-500.0,0.00018356,2]
[334005089,1722672692355,-684.61,0.00018356,2]
[334005090,1722672692366,-500.0,0.00018356,2]
[334005091,1722672692376,-500.0,0.00018356,2]
[334005092,1722672692387,-905.13,0.00018356,2]
[334005093,1722672692396,-755.85,0.00018356,2]
[334005094,1722672692407,-500.0,0.00018356,2]
[334005095,1722672692416,-500.0,0.00018356,2]
[334005096,1722672692426,-561.29,0.00018356,2]
[334005097,1722672692436,-500.0,0.00018356,2]
[334005098,1722672692447,-500.0,0.00018356,2]
[334005099,1722672692457,-500.0,0.00018356,2]
[334005100,1722672692466,-857.89,0.00018356,2]
[334005101,1722672692478,-42354.3,0.00018356,2]
[334005102,1722672692488,-580.03,0.00018356,2]
[334005103,1722672692497,-5350.45,0.00018356,2]
[334005104,1722672692508,-500.0,0.00018356,2]
[334005105,1722672692520,-728.4,0.00018356,2]
[334005106,1722672692529,-500.0,0.00018356,2]
[334005107,1722672692539,-500.0,0.00018356,2]
[334005108,1722672692549,-280.02420391,0.00018356,2]
[334005109,1722672692559,-3471.03,0.00018356,2]
[334005110,1722672692569,-609.74,0.00018356,2]
[334005111,1722672692579,-1689.99,0.00018356,2]
[334005112,1722672692589,-500.0,0.00018356,2]
[334005113,1722672692601,-6425.66,0.00018356,2]
[334005114,1722672692611,-648.94,0.00018356,2]
[334005115,1722672692620,-500.0,0.00018356,2]
[334005116,1722672692630,-1670.28,0.00018356,2]
[334005117,1722672692640,-13172.1,0.00018356,2]
[334005118,1722672692650,-6701.04,0.00018356,2]
[334005119,1722672692660,-2424.35,0.00018356,2]
[334005120,1722672692670,-1079.15,0.00018356,2]
[334005121,1722672692681,-697.85,0.00018356,2]
[334005122,1722672692691,-1261.65,0.00018356,2]
[334005123,1722672692701,-1264.29,0.00018356,2]
[334005124,1722672692711,-500.0,0.00018356,2]
[334005125,1722672692720,-500.0,0.00018356,2]
[334005126,1722672692732,-3981.7,0.00018356,2]
[334005127,1722672692742,-808.41,0.00018356,2]
[334005128,1722672692752,-315.17448637,0.00018356,2]
[334005129,1722672692763,-9537.11,0.00018356,2]
[334005130,1722672692773,-500.0,0.00018356,2]
[334005131,1722672692784,-873.33,0.00018356,2]
[334005132,1722672692794,-627.46,0.00018356,2]
[334005133,1722672692804,-4527.79,0.00018356,2]
[334005134,1722672692816,-1120.2,0.00018356,2]
[334005135,1722672692826,-500.0,0.00018356,2]
[334005136,1722672692836,-500.0,0.00018356,2]
[334005137,1722672692846,-1413.65,0.00018356,2]
[334005138,1722672692856,-799.1,0.00018356,2]
[334005139,1722672692866,-2582.22,0.00018356,2]
[334005140,1722672692875,-500.0,0.00018356,2]
[334005141,1722672692885,-500.0,0.00018356,2]
[334005142,1722672692896,-500.0,0.00018356,2]
[334005143,1722672692906,-558.9,0.00018356,2]
[334005144,1722672692915,-4338.65,0.00018356,2]
[334005145,1722672692925,-500.0,0.00018356,2]
[334005146,1722672692935,-589.65,0.00018356,2]
[334005147,1722672692945,-500.0,0.00018356,2]
[334005148,1722672692955,-6299.84,0.00018356,2]
[334005149,1722672692964,-500.0,0.00018356,2]
[334005150,1722672692974,-3567.38,0.00018356,2]
[334005151,1722672692983,-504.8,0.00018356,2]
[334005152,1722672692993,-500.0,0.00018356,2]
[334005153,1722672693002,-1132.78,0.00018356,2]
[334005154,1722672693012,-527.09,0.00018356,2]
[334005155,1722672693022,-500.0,0.00018356,2]
[334005156,1722672693032,-500.0,0.00018356,2]
[334005157,1722672693042,-557.75,0.00018356,2]
[334005158,1722672693052,-500.0,0.00018356,2]
[334005159,1722672693063,-500.0,0.00018356,2]
[334005160,1722672693073,-775.61,0.00018356,2]
[334005161,1722672693083,-5075.14,0.00018356,2]
[334005162,1722672693093,-500.0,0.00018356,2]
[334005163,1722672693103,-1597.24,0.00018356,2]
[334005164,1722672693112,-524.51,0.00018356,2]
[334005165,1722672693122,-2236.78,0.00018356,2]
[334005166,1722672693131,-591.43,0.00018356,2]
[334005167,1722672693142,-739.97,0.00018356,2]
[334005168,1722672693151,-1988.37,0.00018356,2]
[334005169,1722672693161,-7580.49,0.00018356,2]
[334005170,1722672693170,-500.0,0.00018356,2]
[334005171,1722672693180,-500.0,0.00018356,2]
[334005172,1722672693190,-1779.35,0.00018356,2]
[334005173,1722672693200,-1153.18,0.00018356,2]
[334005174,1722672693210,-806.0,0.00018356,2]
[334005175,1722672693220,-520.82,0.00018356,2]
[334005176,1722672693231,-1222.12,0.00018356,2]
[334005177,1722672693242,-462.87095377,0.00018356,2]
[334005178,1722672693252,-543.96,0.00018356,2]
[334005179,1722672693262,-500.0,0.00018356,2]
[334005180,1722672693271,-500.0,0.00018356,2]
[334005181,1722672693281,-2755.57,0.00018356,2]
[334005182,1722672693291,-1766.59,0.00018356,2]
[334005183,1722672693301,-500.0,0.00018356,2]
[334005184,1722672693310,-500.0,0.00018356,2]
[334005185,1722672693320,-6784.85,0.00018356,2]
[334005186,1722672693329,-500.0,0.00018356,2]
[334005187,1722672693339,-1170.99,0.00018356,2]
[334005188,1722672693349,-500.0,0.00018356,2]
[334005189,1722672693359,-1509.0,0.00018356,2]
[334005190,1722672693369,-2272.41,0.00018356,2]
[334005191,1722672693379,-1134.66,0.00018356,2]
[334005192,1722672693389,-788.7,0.00018356,2]
[334005193,1722672693399,-500.0,0.00018356,2]
[334005194,1722672693409,-500.0,0.00018356,2]
[334005195,1722672693419,-500.0,0.00018356,2]
[334005196,1722672693428,-500.0,0.00018356,2]
[334005197,1722672693438,-500.0,0.00018356,2]
[334005198,1722672693448,-556.92,0.00018356,2]
[334005199,1722672693458,-851.8,0.00018356,2]
[334005200,1722672693467,-500.0,0.00018356,2]
[334005201,1722672693478,-829.82,0.00018356,2]
[334005202,1722672693488,-500.0,0.00018356,2]
[334005203,1722672693497,-978.08,0.00018356,2]
[334005204,1722672693508,-3555.81,0.00018356,2]
[334005205,1722672693521,-1000.11,0.00018356,2]
[334005206,1722672693531,-500.0,0.00018356,2]
[334005207,1722672693541,-1173.97,0.00018356,2]
[334005208,1722672693551,-500.0,0.00018356,2]
[334005209,1722672693563,-500.0,0.00018356,2]
[334005210,1722672693572,-6514.15,0.00018356,2]
[334005211,1722672693581,-500.0,0.00018356,2]
[334005212,1722672693592,-828.77,0.00018356,2]
[334005213,1722672693602,-1272.15,0.00018356,2]
[334005214,1722672693611,-3333.78,0.00018356,2]
[334005215,1722672693621,-1598.98,0.00018356,2]
[334005216,1722672693632,-1643.08,0.00018356,2]
[334005217,1722672693642,-2015.77,0.00018356,2]
[334005218,1722672693652,-3382.08,0.00018356,2]
[334005219,1722672693662,-1056.18,0.00018356,2]
[334005220,1722672693671,-1410.26,0.00018356,2]
[334005221,1722672693682,-500.0,0.00018356,2]
[334005222,1722672693691,-500.0,0.00018356,2]
[334005223,1722672693701,-657.49,0.00018356,2]
[334005224,1722672693710,-500.0,0.00018356,2]
[334005225,1722672693720,-1314.36,0.00018356,2]
[334005226,1722672693738,-5105.47,0.00018356,2]
[334005227,1722672693749,-1117.0,0.00018356,2]
[334005228,1722672693758,-863.0,0.00018356,2]
[334005229,1722672693769,-988.31,0.00018356,2]
[334005230,1722672693778,-500.0,0.00018356,2]
[334005231,1722672693789,-588.88,0.00018356,2]
[334005232,1722672693799,-916.53,0.00018356,2]
[334005233,1722672693809,-500.0,0.00018356,2]
[334005234,1722672693818,-3858.07,0.00018356,2]
[334005235,1722672693829,-886.61,0.00018356,2]
[334005236,1722672693839,-2523.24,0.00018356,2]
[334005237,1722672693849,-1144.92,0.00018356,2]
[334005238,1722672694173,-500.0,0.00018356,2]
[334005239,1722672694194,-1055.01,0.00018356,2]
[334005240,1722672694204,-500.0,0.00018356,2]
[334005241,1722672694213,-596.99,0.00018356,2]
[334005242,1722672694224,-500.0,0.00018356,2]
[334005243,1722672694236,-867.52,0.00018356,2]
[334005244,1722672694246,-758.07,0.00018356,2]
[334005245,1722672694256,-500.0,0.00018356,2]
[334005246,1722672694266,-500.0,0.00018356,2]
[334005247,1722672694275,-1413.54,0.00018356,2]
[334005248,1722672694285,-539.56569053,0.00018356,2]
[334005249,1722672694295,-626.69,0.00018356,2]
[334005250,1722672694304,-1086.46,0.00018356,2]
[334005251,1722672694314,-500.0,0.00018356,2]
[334005252,1722672694324,-1048.09,0.00018356,2]
[334005253,1722672694333,-945.91,0.00018356,2]
[334005254,1722672694342,-503.04,0.00018356,2]
[334005255,1722672694352,-2243.32,0.00018356,2]
[334005256,1722672694361,-500.0,0.00018356,2]
[334005257,1722672694371,-2041.55,0.00018356,2]
[334005258,1722672694380,-1876.41,0.00018356,2]
[334005259,1722672694389,-876.92,0.00018356,2]
[334005260,1722672694399,-500.0,0.00018356,2]
[334005261,1722672694408,-1974.73,0.00018356,2]
[334005262,1722672694418,-596.72,0.00018356,2]
[334005263,1722672694428,-500.0,0.00018356,2]
[334005264,1722672694437,-849.08,0.00018356,2]
[334005265,1722672694447,-1836.41,0.00018356,2]
[334005266,1722672694457,-1295.33,0.00018356,2]
[334005267,1722672694467,-3536.23,0.00018356,2]
[334005268,1722672694478,-500.0,0.00018356,2]
[334005269,1722672694487,-2083.37,0.00018356,2]
[334005270,1722672694497,-500.0,0.00018356,2]
[334005271,1722672694506,-500.0,0.00018356,2]
[334005272,1722672694518,-500.0,0.00018356,2]
[334005273,1722672694528,-500.0,0.00018356,2]
[334005274,1722672694537,-1001.94,0.00018356,2]
[334005275,1722672694547,-3080.78,0.00018356,2]
[334005276,1722672694557,-547.37,0.00018356,2]
[334005277,1722672694567,-500.0,0.00018356,2]
[334005278,1722672694577,-3054.54,0.00018356,2]
[334005279,1722672694587,-1224.2,0.00018356,2]
[334005280,1722672694599,-1519.85,0.00018356,2]
[334005281,1722672694609,-1194.14,0.00018356,2]
[334005282,1722672694619,-793.38,0.00018356,2]
[334005283,1722672694629,-500.0,0.00018356,2]
[334005284,1722672694638,-871.03,0.00018356,2]
[334005285,1722672694648,-525.65,0.00018356,2]
[334005286,1722672694658,-1267.34,0.00018356,2]
[334005287,1722672694668,-500.0,0.00018356,2]
[334005288,1722672694678,-3366.59,0.00018356,2]
[334005289,1722672694688,-992.94,0.00018356,2]
[334005290,1722672694697,-550.93,0.00018356,2]
[334005291,1722672694707,-555.73,0.00018356,2]
[334005292,1722672694716,-500.0,0.00018356,2]
[334005293,1722672694727,-500.0,0.00018356,2]
[334005294,1722672694737,-642.28,0.00018356,2]
[334005295,1722672694747,-1946.82,0.00018356,2]
[334005296,1722672694758,-1662.23,0.00018356,2]
[334005297,1722672694768,-1212.94,0.00018356,2]
[334005298,1722672694778,-1900.41,0.00018356,2]
[334005299,1722672694788,-500.0,0.00018356,2]
[334005300,1722672694798,-937.73,0.00018356,2]
[334005301,1722672694808,-692.84,0.00018356,2]
[334005302,1722672694818,-1192.07,0.00018356,2]
[334005303,1722672694828,-2354.23,0.00018356,2]
[334005304,1722672694838,-1258.11,0.00018356,2]
[334005305,1722672694848,-500.0,0.00018356,2]
[334005306,1722672694858,-1060.96,0.00018356,2]
[334005307,1722672694869,-6100.7,0.00018356,2]
[334005308,1722672694879,-4981.79,0.00018356,2]
[334005309,1722672694888,-500.0,0.00018356,2]
[334005310,1722672694898,-937.04,0.00018356,2]
[334005311,1722672694908,-2840.72,0.00018356,2]
[334005312,1722672694919,-4003.25,0.00018356,2]
[334005313,1722672694929,-2170.91,0.00018356,2]
[334005314,1722672694940,-804.77,0.00018356,2]
[334005315,1722672694950,-500.0,0.00018356,2]
[334005316,1722672694960,-500.0,0.00018356,2]
[334005317,1722672694970,-1151.68,0.00018356,2]
[334005318,1722672694980,-2144.3,0.00018356,2]
[334005319,1722672694990,-500.0,0.00018356,2]
[334005320,1722672695001,-721.28,0.00018356,2]
[334005321,1722672695010,-500.0,0.00018356,2]
[334005322,1722672695020,-1032.34,0.00018356,2]
[334005323,1722672695031,-549.7,0.00018356,2]
[334005324,1722672695041,-2037.25,0.00018356,2]
[334005325,1722672695051,-928.42,0.00018356,2]
[334005326,1722672695061,-3499.27,0.00018356,2]
[334005327,1722672695070,-1536.28,0.00018356,2]
[334005328,1722672695080,-500.0,0.00018356,2]
[334005329,1722672695090,-1037.63,0.00018356,2]
[334005330,1722672695100,-1737.33,0.00018356,2]
[334005331,1722672695110,-1095.94,0.00018356,2]
[334005332,1722672695120,-1906.6,0.00018356,2]
[334005333,1722672695130,-500.0,0.00018356,2]
[334005334,1722672695139,-500.0,0.00018356,2]
[334005335,1722672695150,-663.02,0.00018356,2]
[334005336,1722672695161,-602.45,0.00018356,2]
[334005337,1722672695171,-781.58854722,0.00018381,2]
[334005338,1722672695181,-9378.82424414,0.00018381,2]
[334005339,1722672695190,-1107.98428031,0.00018526,2]
[334005340,1722672695201,-500.0,0.0001863,2]
[334005341,1722672695211,-500.0,0.0001863,2]
[334005342,1722672695220,-500.0,0.0001863,2]
[334005343,1722672695230,-500.0,0.0001863,2]
[334005344,1722672695240,-500.0,0.0001863,2]
[334005345,1722672695249,-500.0,0.0001863,2]
[334005346,1722672695259,-205.37280958,0.0001863,2]
[334005347,1722672695268,-500.0,0.0001863,2]
[334005348,1722672695278,-500.0,0.0001863,2]
[334005349,1722672695288,-500.0,0.0001863,2]
[334005350,1722672695297,-500.0,0.0001863,2]
[334005351,1722672695307,-500.0,0.0001863,2]
[334005352,1722672695316,-500.0,0.0001863,2]
[334005353,1722672695325,-537.74,0.0001863,2]
[334005354,1722672695334,-500.0,0.0001863,2]
[334005355,1722672695343,-500.0,0.0001863,2]
[334005356,1722672695352,-907.58,0.0001863,2]
[334005357,1722672695362,-269.74586053,0.0001863,2]
[334005358,1722672695371,-500.0,0.0001863,2]
[334005359,1722672695381,-500.0,0.0001863,2]
[334005360,1722672695390,-500.0,0.0001863,2]
[334005361,1722672695399,-500.0,0.0001863,2]
[334005362,1722672695409,-500.0,0.0001863,2]
[334005363,1722672695418,-560.39,0.0001863,2]
[334005364,1722672695427,-500.0,0.0001863,2]
[334005365,1722672695437,-500.0,0.0001863,2]
[334005366,1722672695446,-550.32,0.0001863,2]
[334005367,1722672695455,-307.73284968,0.0001863,2]
[334005368,1722672695465,-548.45,0.0001863,2]
[334005369,1722672695475,-500.0,0.0001863,2]
[334005370,1722672695484,-500.0,0.0001863,2]
[334005371,1722672695494,-500.0,0.0001863,2]
[334005372,1722672695503,-599.16,0.0001863,2]
[334005373,1722672695512,-500.0,0.0001863,2]
[334005374,1722672695526,-500.0,0.0001863,2]
[334005375,1722672695535,-500.0,0.0001863,2]
[334005376,1722672695544,-500.0,0.0001863,2]
[334005377,1722672695554,-500.0,0.0001863,2]
[334005378,1722672695563,-561.29,0.0001863,2]
[334005379,1722672695572,-528.88,0.0001863,2]
[334005380,1722672695581,-500.0,0.0001863,2]
[334005381,1722672695590,-500.0,0.0001863,2]
[334005382,1722672695602,-500.0,0.0001863,2]
[334005383,1722672695612,-500.0,0.0001863,2]
[334005384,1722672695621,-500.0,0.0001863,2]
[334005385,1722672695632,-500.0,0.0001863,2]
[334005386,1722672695642,-706.98,0.0001863,2]
[334005387,1722672695651,-500.0,0.0001863,2]
[334005388,1722672695660,-500.0,0.0001863,2]
[334005389,1722672695670,-500.0,0.0001863,2]
[334005390,1722672695679,-500.0,0.0001863,2]
[334005391,1722672695689,-500.0,0.0001863,2]
[334005392,1722672695698,-500.0,0.0001863,2]
[334005393,1722672695708,-696.17,0.0001863,2]
[334005394,1722672695718,-578.41208048,0.0001863,2]
[334005395,1722672695727,-500.0,0.0001863,2]
[334005396,1722672695737,-500.0,0.0001863,2]
[334005397,1722672695746,-500.0,0.0001863,2]
[334005398,1722672695755,-500.0,0.0001863,2]
[334005399,1722672695765,-500.0,0.0001863,2]
[334005400,1722672695775,-500.0,0.0001863,2]
[334005401,1722672695784,-500.0,0.0001863,2]
[334005402,1722672695794,-500.0,0.0001863,2]
[334005403,1722672695804,-508.13,0.0001863,2]
[334005404,1722672695814,-924.44,0.0001863,2]
[334005405,1722672695824,-500.0,0.0001863,2]
[334005406,1722672695834,-748.67,0.0001863,2]
[334005407,1722672695844,-610.71,0.0001863,2]
[334005408,1722672695853,-500.0,0.0001863,2]
[334005409,1722672695863,-616.11,0.0001863,2]
[334005410,1722672695872,-500.0,0.0001863,2]
[334005411,1722672695881,-500.0,0.0001863,2]
[334005412,1722672695891,-500.0,0.0001863,2]
[334005413,1722672695901,-304.84624166,0.0001863,2]
[334005414,1722672695910,-500.0,0.0001863,2]
[334005415,1722672695920,-500.0,0.0001863,2]
[334005416,1722672695929,-526.29,0.0001863,2]
[334005417,1722672695939,-500.0,0.0001863,2]
[334005418,1722672695949,-804.34,0.0001863,2]
[334005419,1722672695958,-500.0,0.0001863,2]
[334005420,1722672695968,-500.0,0.0001863,2]
[334005421,1722672695977,-500.0,0.0001863,2]
[334005422,1722672695987,-500.0,0.0001863,2]
[334005423,1722672695996,-500.0,0.0001863,2]
[334005424,1722672696006,-298.54169842,0.0001863,2]
[334005425,1722672696016,-590.71,0.0001863,2]
[334005426,1722672696025,-500.0,0.0001863,2]
[334005427,1722672696035,-500.0,0.0001863,2]
[334005428,1722672696048,-572.46,0.0001863,2]
[334005429,1722672696060,-500.0,0.0001863,2]
[334005430,1722672696070,-500.0,0.0001863,2]
[334005431,1722672696080,-500.0,0.0001863,2]
[334005432,1722672696089,-1146.83,0.0001863,2]
[334005433,1722672696099,-500.0,0.0001863,2]
[334005434,1722672696109,-951.73,0.0001863,2]
[334005435,1722672696119,-307.5327123,0.0001863,2]
[334005436,1722672696129,-888.24,0.0001863,2]
[334005437,1722672696139,-320.82784222,0.0001863,2]
[334005438,1722672696149,-1734.7,0.0001863,2]
[334005439,1722672696159,-500.0,0.0001863,2]